lending/lending_fUSD_20250317
["ID","MTS","AMOUNT","RATE_DAILY","PERIOD"]
[356319012,1742254242005,-601.0,9.7e-05,2]
[356319013,1742254242014,-28789.43305258,9.7e-05,2]
[356319017,1742254243650,-483.555,9.7e-05,2]
[356319018,1742254243662,-2431.18174088,9.7e-05,2]
[356319019,1742254243674,-2241.58568041,9.7e-05,2]
[356319020,1742254246395,-1777.82219891,9.699e-05,2]
[356319021,1742254246407,-935.81339009,9.699e-05,2]
[356319022,1742254246417,-1729.18660491,9.699e-05,2]
[356319023,1742254246428,-834.36205545,9.699e-05,2]
[356319024,1742254246445,-150.08692864,9.699e-05,2]
[356319025,1742254246454,-1334.64355151,9.7e-05,2]
[356319026,1742254246590,-856.7929336,9.7e-05,2]
[356319027,1742254246602,-379.11443231,9.7e-05,2]
[356319028,1742254246637,-1405.00000001,9.7e-05,2]
[356319029,1742254246689,-263.258183,9.7e-05,2]
[356319030,1742254246700,-1131.1209526,9.7e-05,2]
[356319031,1742254246712,-5199.88223325,9.7e-05,2]
[356319033,1742254261820,400.0,9.2e-05,3]
[356319034,1742254263915,900.0,9.3e-05,3]
[356319035,1742254266019,1400.0,9.4e-05,3]
[356319036,1742254268127,1800.0,9.5e-05,3]
[356319037,1742254270215,2300.0,9.6e-05,3]
[356319038,1742254272306,400.0,9.7e-05,3]
[356319039,1742254274413,400.0,9.8e-05,3]
[356319040,1742254276583,400.0,9.9e-05,3]
[356319041,1742254278652,400.0,0.0001,3]
[356319042,1742254358420,-150.0,9.599e-05,2]
[356319043,1742254389975,200.45185774,9.551e-05,2]
[356319046,1742254527419,150.0,9.562e-05,7]
[356319047,1742254770622,250.0,9e-05,2]
[356319048,1742254775490,156.08,8.727e-05,2]
[356319049,1742254784647,490.53,9.4e-05,2]
[356319052,1742254998840,811.52,8.219e-05,2]
[356319053,1742255178245,1000.0,8.724e-05,2]
[356319054,1742255356070,-150.0,9.599e-05,2]
[356319055,1742255356121,-250.0,9.599e-05,2]
[356319056,1742255356167,-150.0,9.599e-05,2]
[356319057,1742255356218,-150.0,9.599e-05,2]
[356319058,1742255356267,-6623.44886083,9.599e-05,2]
[356319059,1742255356322,-4817.86015494,9.599e-05,2]
[356319060,1742255381132,-1175.37088423,9.599e-05,2]
[356319061,1742255381177,-226.9758,9.6e-05,2]
[356319062,1742255381221,-4969.7695,9.6e-05,2]
[356319063,1742255381266,-1194.15885692,9.6e-05,2]
[356319064,1742255381315,-1413.48284308,9.6e-05,2]
[356319065,1742255381361,-4929.36976385,9.6e-05,2]
[356319066,1742255385283,163.51,9.4e-05,2]
[356319067,1742255405942,-1622.75373615,9.6e-05,2]
[356319068,1742255405999,-6221.70385796,9.6e-05,2]
[356319069,1742255406064,-3044.07937075,9.6e-05,2]
[356319079,1742255431682,-345.81324392,9.6e-05,2]
[356319080,1742255431694,-39.32822737,9.6e-05,2]
[356319081,1742255431703,-5820.8727,9.6e-05,2]
[356319082,1742255431713,-150.0,9.6e-05,2]
[356319083,1742255431723,-250.0,9.6e-05,2]
[356319084,1742255431732,-32062.54480811,9.6e-05,2]
[356319085,1742255431742,-1388.209929,9.6e-05,2]
[356319086,1742255431752,-163.51,9.6e-05,2]
[356319087,1742255431761,-168.18880085,9.6e-05,2]
[356319088,1742255431770,-150.0,9.633e-05,2]
[356319089,1742255431780,-500.0,9.673e-05,2]
[356319090,1742255431789,-1625.55,9.695e-05,2]
[356319091,1742255431798,-2367.42,9.695e-05,2]
[356319092,1742255431807,-2325.4052686,9.695e-05,2]
[356319093,1742255431817,-1843.894,9.698e-05,2]
[356319094,1742255431827,-163.298,9.698e-05,2]
[356319095,1742255431836,-999.99,9.698e-05,2]
[356319096,1742255431847,-620.05,9.698e-05,2]
[356319097,1742255431861,-150.99,9.698e-05,2]
[356319098,1742255431870,-151.0,9.698e-05,2]
[356319099,1742255431879,-151.0,9.698e-05,2]
[356319100,1742255431889,-151.0,9.698e-05,2]
[356319101,1742255431901,-151.0,9.698e-05,2]
[356319102,1742255431910,-151.0,9.698e-05,2]
[356319103,1742255431920,-151.0,9.698e-05,2]
[356319104,1742255431931,-151.0,9.698e-05,2]
[356319105,1742255431941,-151.0,9.699e-05,2]
[356319106,1742255431951,-151.0,9.699e-05,2]
[356319107,1742255431960,-151.0,9.699e-05,2]
[356319108,1742255431970,-151.0,9.699e-05,2]
[356319109,1742255431979,-151.0,9.699e-05,2]
[356319110,1742255431989,-151.0,9.699e-05,2]
[356319111,1742255431998,-1731.28,9.699e-05,2]
[356319112,1742255432007,-151.0,9.699e-05,2]
[356319113,1742255432017,-151.0,9.699e-05,2]
[356319114,1742255432027,-151.0,9.699e-05,2]
[356319115,1742255432037,-2442.27203,9.699e-05,2]
[356319116,1742255432046,-2442.27203,9.699e-05,2]
[356319117,1742255432056,-151.0,9.699e-05,2]
[356319118,1742255432066,-151.0,9.699e-05,2]
[356319119,1742255432075,-151.0,9.699e-05,2]
[356319120,1742255432085,-151.0,9.699e-05,2]
[356319121,1742255432094,-151.0,9.699e-05,2]
[356319122,1742255432103,-151.0,9.699e-05,2]
[356319123,1742255432113,-161.370272,9.699e-05,2]
[356319124,1742255432123,-242.36112993,9.699e-05,2]
[356319125,1742255432134,-185.24680469,9.699e-05,2]
[356319127,1742255432143,-151.0,9.699e-05,2]
[356319129,1742255432154,-271093.23924883,9.699e-05,2]
[356319131,1742255432164,-532.0,9.7e-05,2]
[356319134,1742255432174,-391629.26351646,9.7e-05,2]
[356319136,1742255432185,-468.29999999,9.7e-05,2]
[356319138,1742255432201,-1554.40399311,9.7e-05,2]
[356319320,1742255437461,-151.0,9.698e-05,2]
[356319322,1742255437471,-134.640355,9.7e-05,2]
[356319324,1742255437485,-2207.395498,9.7e-05,2]
[356319325,1742255437661,-369.50775994,9.7e-05,2]
[356319326,1742255437673,-3272.795,9.7e-05,2]
[356319327,1742255437684,-4003.0,9.7e-05,2]
[356319371,1742255439628,-32612.42461368,9.7e-05,2]
[356319374,1742255439640,-134496.9047098,9.7e-05,2]
[356319376,1742255439654,-26558.41601671,9.7e-05,2]
[356319377,1742255439666,-368216.81556438,9.7e-05,2]
[356319378,1742255439678,-8590.04777524,9.7e-05,2]
[356319380,1742255439689,-4014.5,9.7e-05,2]
[356319382,1742255439702,-69883.20142232,9.7e-05,2]
[356319383,1742255439713,-371283.42909669,9.7e-05,2]
[356319384,1742255439725,-14538.21884674,9.7e-05,2]
[356319385,1742255439737,-407.1445347,9.7e-05,2]
[356319386,1742255439749,-2009.09802745,9.7e-05,2]
[356319387,1742255439761,-324.2409,9.7e-05,2]
[356319388,1742255439812,-4378.60257228,9.7e-05,2]
[356319389,1742255439999,-10558.62078272,9.7e-05,2]
[356319390,1742255440028,-108022.26911131,9.7e-05,2]
[356319391,1742255440039,-42825.78971764,9.7e-05,2]
[356319392,1742255440051,-14330.042334,9.7e-05,2]
[356319393,1742255440063,-330.49179564,9.7e-05,2]
[356319668,1742255443164,-1855.88181167,9.7e-05,2]
[356319669,1742255443390,-828.31662915,9.7e-05,2]
[356319672,1742255445671,-3393.25870612,9.7e-05,2]
[356319673,1742255445682,-10494.75516,9.7e-05,2]
[356319674,1742255445693,-610.69835794,9.7e-05,2]
[356319675,1742255445778,-359043.62554749,9.7e-05,2]
[356319676,1742255445787,-2266.41799945,9.7e-05,2]
[356319677,1742255445797,-250.0,9.7e-05,2]
[356319678,1742255445806,-250.0,9.7e-05,2]
[356319679,1742255445816,-250.0,9.7e-05,2]
[356319680,1742255445826,-151.0,9.7e-05,2]
[356319681,1742255445835,-151.0,9.7e-05,2]
[356319682,1742255445844,-151.0,9.7e-05,2]
[356319683,1742255445858,-151.411944,9.7e-05,2]
[356319684,1742255445867,-151.0,9.7e-05,2]
[356319685,1742255445877,-151.953114,9.7e-05,2]
[356319686,1742255445886,-151.0,9.7e-05,2]
[356319687,1742255445897,-151.0,9.7e-05,2]
[356319688,1742255445907,-151.0,9.7e-05,2]
[356319689,1742255445916,-151.0,9.7e-05,2]
[356319690,1742255445926,-151.0,9.7e-05,2]
[356319691,1742255445936,-151.0,9.7e-05,2]
[356319692,1742255445945,-151.0,9.7e-05,2]
[356319693,1742255445955,-151.0,9.7e-05,2]
[356319694,1742255445964,-235.34899473,9.7e-05,2]
[356319695,1742255445975,-151.0,9.7e-05,2]
[356319696,1742255445984,-151.0,9.7e-05,2]
[356319697,1742255445994,-152.304306,9.7e-05,2]
[356319698,1742255446003,-173.49923,9.7e-05,2]
[356319699,1742255446013,-173.49923,9.7e-05,2]
[356319700,1742255446022,-173.49923,9.7e-05,2]
[356319701,1742255446032,-173.49923,9.7e-05,2]
[356319702,1742255446042,-173.49923,9.7e-05,2]
[356319703,1742255446051,-173.49923,9.7e-05,2]
[356319704,1742255446060,-151.0,9.7e-05,2]
[356319705,1742255446069,-153.300914,9.7e-05,2]
[356319706,1742255446078,-151.0,9.7e-05,2]
[356319707,1742255446087,-151.0,9.7e-05,2]
[356319708,1742255446097,-151.0,9.7e-05,2]
[356319709,1742255446106,-151.0,9.7e-05,2]
[356319710,1742255446115,-154.160073,9.7e-05,2]
[356319711,1742255446124,-151.0,9.7e-05,2]
[356319712,1742255446133,-151.0,9.7e-05,2]
[356319713,1742255446143,-151.0,9.7e-05,2]
[356319714,1742255446153,-151.0,9.7e-05,2]
[356319715,1742255446162,-151.0,9.7e-05,2]
[356319716,1742255446172,-151.0,9.7e-05,2]
[356319717,1742255446181,-151.0,9.7e-05,2]
[356319718,1742255446191,-151.0,9.7e-05,2]
[356319719,1742255446210,-151.0,9.7e-05,2]
[356319720,1742255446220,-151.0,9.7e-05,2]
[356319721,1742255446230,-151.0,9.7e-05,2]
[356319722,1742255446239,-151.0,9.7e-05,2]
[356319723,1742255446249,-152.240532,9.7e-05,2]
[356319724,1742255446258,-152.501064,9.7e-05,2]
[356319725,1742255446268,-151.0,9.7e-05,2]
[356319726,1742255446278,-151.0,9.7e-05,2]
[356319727,1742255446288,-151.0,9.7e-05,2]
[356319728,1742255446298,-241.193342,9.7e-05,2]
[356319729,1742255446308,-151.0,9.7e-05,2]
[356319730,1742255446318,-151.0,9.7e-05,2]
[356319731,1742255446327,-152.357257,9.7e-05,2]
[356319732,1742255446337,-151.244997,9.7e-05,2]
[356319733,1742255446347,-168.729101,9.7e-05,2]
[356319734,1742255446356,-168.729101,9.7e-05,2]
[356319735,1742255446366,-168.729101,9.7e-05,2]
[356319736,1742255446375,-168.729101,9.7e-05,2]
[356319737,1742255446385,-168.729101,9.7e-05,2]
[356319738,1742255446395,-168.729101,9.7e-05,2]
[356319739,1742255446407,-168.729101,9.7e-05,2]
[356319740,1742255446416,-168.729101,9.7e-05,2]
[356319741,1742255446426,-168.729101,9.7e-05,2]
[356319742,1742255446436,-168.729101,9.7e-05,2]
[356319743,1742255446447,-168.729101,9.7e-05,2]
[356319744,1742255446458,-168.729101,9.7e-05,2]
[356319745,1742255446468,-168.729101,9.7e-05,2]
[356319746,1742255446478,-168.729101,9.7e-05,2]
[356319747,1742255446488,-151.0,9.7e-05,2]
[356319748,1742255446500,-151.0,9.7e-05,2]
[356319749,1742255446510,-151.0,9.7e-05,2]
[356319750,1742255446520,-151.0,9.7e-05,2]
[356319751,1742255446530,-151.0,9.7e-05,2]
[356319752,1742255446539,-151.0,9.7e-05,2]
[356319753,1742255446550,-151.0,9.7e-05,2]
[356319754,1742255446559,-186.811667,9.7e-05,2]
[356319755,1742255446569,-151.0,9.7e-05,2]
[356319756,1742255446579,-151.0,9.7e-05,2]
[356319757,1742255446589,-157.818794,9.7e-05,2]
[356319758,1742255446598,-151.0,9.7e-05,2]
[356319759,1742255446608,-153.162332,9.7e-05,2]
[356319760,1742255446618,-151.0,9.7e-05,2]
[356319761,1742255446628,-151.0,9.7e-05,2]
[356319762,1742255446639,-151.0,9.7e-05,2]
[356319763,1742255446648,-151.0,9.7e-05,2]
[356319764,1742255446659,-152.428986,9.7e-05,2]
[356319765,1742255446669,-153.477013,9.7e-05,2]
[356319766,1742255446679,-151.0,9.7e-05,2]
[356319767,1742255446688,-151.0,9.7e-05,2]
[356319768,1742255446698,-151.0,9.7e-05,2]
[356319769,1742255446708,-151.0,9.7e-05,2]
[356319770,1742255446718,-151.0,9.7e-05,2]
[356319771,1742255446729,-151.0,9.7e-05,2]
[356319772,1742255446739,-151.0,9.7e-05,2]
[356319773,1742255446750,-151.0,9.7e-05,2]
[356319774,1742255446760,-151.0,9.7e-05,2]
[356319775,1742255446770,-151.0,9.7e-05,2]
[356319776,1742255446780,-151.0,9.7e-05,2]
[356319777,1742255446790,-151.0,9.7e-05,2]
[356319778,1742255446800,-151.0,9.7e-05,2]
[356319779,1742255446810,-151.0,9.7e-05,2]
[356319780,1742255446820,-151.0,9.7e-05,2]
[356319781,1742255446830,-151.0,9.7e-05,2]
[356319782,1742255446840,-151.0,9.7e-05,2]
[356319783,1742255446851,-151.0,9.7e-05,2]
[356319784,1742255446863,-151.0,9.7e-05,2]
[356319785,1742255446873,-151.407728,9.7e-05,2]
[356319786,1742255446882,-151.0,9.7e-05,2]
[356319787,1742255446892,-205.212519,9.7e-05,2]
[356319788,1742255446904,-205.212519,9.7e-05,2]
[356319789,1742255446915,-205.212519,9.7e-05,2]
[356319790,1742255446925,-205.212519,9.7e-05,2]
[356319791,1742255446936,-205.212519,9.7e-05,2]
[356319792,1742255446947,-205.212519,9.7e-05,2]
[356319793,1742255446956,-151.0,9.7e-05,2]
[356319794,1742255446966,-156.659148,9.7e-05,2]
[356319795,1742255446977,-171.1364,9.7e-05,2]
[356319796,1742255446988,-151.0,9.7e-05,2]
[356319797,1742255446999,-151.0,9.7e-05,2]
[356319798,1742255447010,-151.0,9.7e-05,2]
[356319799,1742255447020,-151.0,9.7e-05,2]
[356319800,1742255447031,-151.0,9.7e-05,2]
[356319801,1742255447041,-151.0,9.7e-05,2]
[356319802,1742255447055,-152.359363,9.7e-05,2]
[356319803,1742255447066,-151.0,9.7e-05,2]
[356319804,1742255447077,-152.363299,9.7e-05,2]
[356319805,1742255447087,-151.0,9.7e-05,2]
[356319806,1742255447098,-151.0,9.7e-05,2]
[356319807,1742255447108,-151.0,9.7e-05,2]
[356319808,1742255447118,-207.274235,9.7e-05,2]
[356319809,1742255447129,-200.025011,9.7e-05,2]
[356319810,1742255447139,-200.025011,9.7e-05,2]
[356319811,1742255447150,-200.025011,9.7e-05,2]
[356319812,1742255447160,-200.025011,9.7e-05,2]
[356319813,1742255447170,-200.025011,9.7e-05,2]
[356319814,1742255447179,-200.025011,9.7e-05,2]
[356319815,1742255447191,-151.0,9.7e-05,2]
[356319816,1742255447202,-151.0,9.7e-05,2]
[356319817,1742255447213,-151.0,9.7e-05,2]
[356319818,1742255447223,-151.0,9.7e-05,2]
[356319819,1742255447234,-151.0,9.7e-05,2]
[356319820,1742255447244,-151.0,9.7e-05,2]
[356319821,1742255447254,-151.0,9.7e-05,2]
[356319822,1742255447264,-151.0,9.7e-05,2]
[356319823,1742255447274,-157.921274,9.7e-05,2]
[356319824,1742255447284,-151.0,9.7e-05,2]
[356319825,1742255447294,-151.0,9.7e-05,2]
[356319826,1742255447305,-151.0,9.7e-05,2]
[356319827,1742255447315,-151.0,9.7e-05,2]
[356319828,1742255447325,-151.0,9.7e-05,2]
[356319829,1742255447335,-151.0,9.7e-05,2]
[356319830,1742255447345,-151.0,9.7e-05,2]
[356319831,1742255447355,-260.626081,9.7e-05,2]
[356319832,1742255447365,-260.626081,9.7e-05,2]
[356319833,1742255447375,-260.626081,9.7e-05,2]
[356319834,1742255447385,-260.626081,9.7e-05,2]
[356319835,1742255447395,-260.626081,9.7e-05,2]
[356319836,1742255447405,-260.626081,9.7e-05,2]
[356319837,1742255447416,-260.626081,9.7e-05,2]
[356319838,1742255447427,-260.626081,9.7e-05,2]
[356319839,1742255447582,-151.0,9.7e-05,2]
[356319840,1742255447593,-202.091188,9.7e-05,2]
[356319841,1742255447603,-151.0,9.7e-05,2]
[356319842,1742255447613,-151.0,9.7e-05,2]
[356319843,1742255447623,-159.09462,9.7e-05,2]
[356319844,1742255447633,-159.09462,9.7e-05,2]
[356319845,1742255447645,-159.09462,9.7e-05,2]
[356319846,1742255447655,-159.09462,9.7e-05,2]
[356319847,1742255447665,-159.09462,9.7e-05,2]
[356319848,1742255447678,-159.09462,9.7e-05,2]
[356319849,1742255447688,-175.813155,9.7e-05,2]
[356319850,1742255447698,-151.0,9.7e-05,2]
[356319851,1742255447708,-151.0,9.7e-05,2]
[356319852,1742255447717,-160.513328,9.7e-05,2]
[356319853,1742255447727,-295.339316,9.7e-05,2]
[356319854,1742255447738,-223.080635,9.7e-05,2]
[356319855,1742255447748,-151.0,9.7e-05,2]
[356319856,1742255447758,-151.0,9.7e-05,2]
[356319857,1742255447768,-151.0,9.7e-05,2]
[356319858,1742255447778,-151.0,9.7e-05,2]
[356319859,1742255447788,-173.989727,9.7e-05,2]
[356319860,1742255447798,-173.989727,9.7e-05,2]
[356319861,1742255447808,-173.989727,9.7e-05,2]
[356319862,1742255447819,-173.989727,9.7e-05,2]
[356319863,1742255447829,-173.989727,9.7e-05,2]
[356319864,1742255447839,-173.989727,9.7e-05,2]
[356319865,1742255447850,-173.989727,9.7e-05,2]
[356319866,1742255447862,-173.989727,9.7e-05,2]
[356319867,1742255447872,-151.0,9.7e-05,2]
[356319868,1742255447882,-151.0,9.7e-05,2]
[356319869,1742255447891,-151.0,9.7e-05,2]
[356319870,1742255447903,-151.0,9.7e-05,2]
[356319871,1742255447913,-151.0,9.7e-05,2]
[356319872,1742255447922,-1052.948431,9.7e-05,2]
[356319873,1742255447933,-1052.948431,9.7e-05,2]
[356319874,1742255447943,-1052.948431,9.7e-05,2]
[356319875,1742255447953,-1052.948431,9.7e-05,2]
[356319876,1742255447962,-1052.948431,9.7e-05,2]
[356319877,1742255447972,-1052.948431,9.7e-05,2]
[356319878,1742255447982,-1052.948431,9.7e-05,2]
[356319879,1742255447991,-1052.948431,9.7e-05,2]
[356319880,1742255448002,-1052.948431,9.7e-05,2]
[356319881,1742255448012,-1052.948431,9.7e-05,2]
[356319882,1742255448022,-154.911866,9.7e-05,2]
[356319883,1742255448032,-151.0,9.7e-05,2]
[356319884,1742255448042,-151.0,9.7e-05,2]
[356319885,1742255448052,-151.0,9.7e-05,2]
[356319886,1742255448062,-151.0,9.7e-05,2]
[356319887,1742255448072,-151.0,9.7e-05,2]
[356319888,1742255448083,-151.0,9.7e-05,2]
[356319889,1742255448092,-151.0,9.7e-05,2]
[356319890,1742255448102,-151.0,9.7e-05,2]
[356319891,1742255448112,-180.250734,9.7e-05,2]
[356319892,1742255448122,-151.0,9.7e-05,2]
[356319893,1742255448132,-192.056999,9.7e-05,2]
[356319894,1742255448142,-2442.27203,9.7e-05,2]
[356319895,1742255448152,-2442.27203,9.7e-05,2]
[356319896,1742255448161,-2442.27203,9.7e-05,2]
[356319897,1742255448172,-2442.27203,9.7e-05,2]
[356319898,1742255448182,-2442.27203,9.7e-05,2]
[356319899,1742255448192,-2442.27203,9.7e-05,2]
[356319900,1742255448202,-2442.27203,9.7e-05,2]
[356319901,1742255448212,-2442.27203,9.7e-05,2]
[356319902,1742255448222,-2442.27203,9.7e-05,2]
[356319903,1742255448231,-2442.27203,9.7e-05,2]
[356319904,1742255448241,-151.0,9.7e-05,2]
[356319905,1742255448251,-151.0,9.7e-05,2]
[356319906,1742255448261,-151.0,9.7e-05,2]
[356319907,1742255448271,-151.0,9.7e-05,2]
[356319908,1742255448281,-151.0,9.7e-05,2]
[356319909,1742255448291,-151.0,9.7e-05,2]
[356319910,1742255448301,-204.20737,9.7e-05,2]
[356319911,1742255448311,-151.0,9.7e-05,2]
[356319912,1742255448321,-151.0,9.7e-05,2]
[356319913,1742255448331,-151.0,9.7e-05,2]
[356319914,1742255448341,-151.0,9.7e-05,2]
[356319915,1742255448351,-151.0,9.7e-05,2]
[356319916,1742255448361,-151.0,9.7e-05,2]
[356319917,1742255448376,-151.0,9.7e-05,2]
[356319918,1742255448386,-151.0,9.7e-05,2]
[356319919,1742255448396,-151.0,9.7e-05,2]
[356319920,1742255448407,-151.0,9.7e-05,2]
[356319921,1742255448417,-151.0,9.7e-05,2]
[356319922,1742255448427,-151.0,9.7e-05,2]
[356319923,1742255448437,-151.0,9.7e-05,2]
[356319924,1742255448447,-151.0,9.7e-05,2]
[356319925,1742255448457,-288.404313,9.7e-05,2]
[356319926,1742255448468,-151.0,9.7e-05,2]
[356319927,1742255448477,-151.0,9.7e-05,2]
[356319928,1742255448487,-151.0,9.7e-05,2]
[356319929,1742255448497,-151.0,9.7e-05,2]
[356319930,1742255448507,-151.0,9.7e-05,2]
[356319931,1742255448519,-151.0,9.7e-05,2]
[356319932,1742255448529,-327.02,9.7e-05,2]
[356319933,1742255448539,-151.0,9.7e-05,2]
[356319934,1742255448549,-151.0,9.7e-05,2]
[356319935,1742255448560,-151.0,9.7e-05,2]
[356319936,1742255448569,-151.0,9.7e-05,2]
[356319937,1742255448579,-151.0,9.7e-05,2]
[356319938,1742255448590,-688.899974,9.702e-05,2]
[356319939,1742255448600,-151.0,9.709e-05,2]
[356319940,1742255448610,-151.0,9.709e-05,2]
[356319941,1742255448620,-151.0,9.709e-05,2]
[356319942,1742255448630,-279.912375,9.709e-05,2]
[356319943,1742255448639,-151.0,9.709e-05,2]
[356319944,1742255448650,-151.0,9.709e-05,2]
[356319945,1742255448660,-151.0,9.71e-05,2]
[356319946,1742255448670,-283.950924,9.71e-05,2]
[356319947,1742255448681,-173.49923,9.71e-05,2]
[356319948,1742255448692,-173.49923,9.71e-05,2]
[356319949,1742255448702,-173.49923,9.71e-05,2]
[356319950,1742255448712,-173.49923,9.71e-05,2]
[356319951,1742255448722,-173.49923,9.71e-05,2]
[356319952,1742255448732,-173.49923,9.71e-05,2]
[356319953,1742255448742,-173.49923,9.71e-05,2]
[356319954,1742255448751,-173.49923,9.71e-05,2]
[356319955,1742255448762,-173.49923,9.71e-05,2]
[356319956,1742255448772,-173.49923,9.71e-05,2]
[356319957,1742255448782,-151.0,9.71e-05,2]
[356319958,1742255448792,-229.583782,9.71e-05,2]
[356319959,1742255448802,-168.729101,9.71e-05,2]
[356319960,1742255448812,-168.729101,9.71e-05,2]
[356319961,1742255448822,-168.729101,9.71e-05,2]
[356319962,1742255448832,-168.729103,9.71e-05,2]
[356319963,1742255448842,-151.0,9.71e-05,2]
[356319964,1742255448856,-205.212519,9.71e-05,2]
[356319965,1742255448866,-205.212519,9.71e-05,2]
[356319966,1742255448876,-205.212519,9.71e-05,2]
[356319967,1742255448885,-205.212519,9.71e-05,2]
[356319968,1742255448895,-151.0,9.71e-05,2]
[356319969,1742255448906,-151.0,9.71e-05,2]
[356319970,1742255448915,-200.025011,9.71e-05,2]
[356319971,1742255448925,-200.025011,9.71e-05,2]
[356319972,1742255448936,-151.0,9.71e-05,2]
[356319973,1742255448946,-151.0,9.71e-05,2]
[356319974,1742255448955,-151.0,9.71e-05,2]
[356319975,1742255448966,-151.0,9.71e-05,2]
[356319976,1742255448975,-260.626081,9.71e-05,2]
[356319977,1742255448985,-260.626081,9.71e-05,2]
[356319978,1742255448995,-159.09462,9.71e-05,2]
[356319979,1742255449005,-159.09462,9.71e-05,2]
[356319980,1742255449014,-151.0,9.71e-05,2]
[356319981,1742255449024,-173.989727,9.71e-05,2]
[356319982,1742255449035,-173.989727,9.71e-05,2]
[356319983,1742255449044,-151.0,9.71e-05,2]
[356319984,1742255449055,-1052.948431,9.71e-05,2]
[356319985,1742255449064,-1052.948431,9.71e-05,2]
[356319986,1742255449074,-151.0,9.71e-05,2]
[356319987,1742255449084,-2442.27203,9.71e-05,2]
[356319988,1742255449093,-2442.27203,9.71e-05,2]
[356319989,1742255449103,-268.656668,9.71e-05,2]
[356319990,1742255449112,-151.0,9.714e-05,2]
[356319991,1742255449123,-151.0,9.714e-05,2]
[356319992,1742255449133,-154.386564,9.714e-05,2]
[356319993,1742255449143,-151.0,9.714e-05,2]
[356319994,1742255449153,-152.325221,9.714e-05,2]
[356319995,1742255449164,-151.0,9.714e-05,2]
[356319996,1742255449173,-157.817053,9.714e-05,2]
[356319997,1742255449182,-204.910884,9.714e-05,2]
[356319998,1742255449192,-173.49923,9.714e-05,2]
[356319999,1742255449202,-173.49923,9.714e-05,2]
[356320000,1742255449212,-173.49923,9.714e-05,2]
[356320001,1742255449222,-173.499238,9.714e-05,2]
[356320002,1742255449232,-151.0,9.714e-05,2]
[356320003,1742255449242,-151.0,9.714e-05,2]
[356320004,1742255449253,-183.168815,9.714e-05,2]
[356320005,1742255449262,-200.025011,9.714e-05,2]
[356320006,1742255449272,-200.025011,9.714e-05,2]
[356320007,1742255449282,-151.0,9.714e-05,2]
[356320008,1742255449292,-151.0,9.714e-05,2]
[356320009,1742255449302,-151.0,9.714e-05,2]
[356320010,1742255449312,-185.825012,9.714e-05,2]
[356320011,1742255449321,-260.626081,9.714e-05,2]
[356320012,1742255449331,-260.626081,9.714e-05,2]
[356320013,1742255449341,-159.09462,9.714e-05,2]
[356320014,1742255449350,-159.09462,9.714e-05,2]
[356320015,1742255449359,-151.0,9.714e-05,2]
[356320016,1742255449481,-173.989727,9.714e-05,2]
[356320017,1742255449492,-173.989727,9.714e-05,2]
[356320018,1742255449502,-151.0,9.714e-05,2]
[356320019,1742255449511,-151.0,9.714e-05,2]
[356320020,1742255449521,-2442.27203,9.714e-05,2]
[356320021,1742255449531,-2442.27203,9.714e-05,2]
[356320022,1742255449540,-151.0,9.714e-05,2]
[356320023,1742255449550,-151.0,9.72e-05,2]
[356320024,1742255449559,-205.212519,9.72e-05,2]
[356320025,1742255449569,-205.212519,9.72e-05,2]
[356320026,1742255449578,-151.0,9.72e-05,2]
[356320027,1742255449587,-300.92,9.72e-05,2]
[356320028,1742255449596,-151.0,9.72e-05,2]
[356320029,1742255449606,-151.0,9.72e-05,2]
[356320030,1742255449616,-441.56,9.72e-05,2]
[356320031,1742255449626,-487.76,9.72e-05,2]
[356320032,1742255449635,-150.0,9.72e-05,2]
[356320033,1742255449644,-345.5,9.72e-05,2]
[356320034,1742255449655,-150.0,9.72e-05,2]
[356320035,1742255449665,-441.56,9.72e-05,2]
[356320036,1742255449675,-159.09462,9.72e-05,2]
[356320037,1742255449685,-345.5,9.72e-05,2]
[356320038,1742255449695,-150.0,9.72e-05,2]
[356320039,1742255449704,-350.65,9.72e-05,2]
[356320040,1742255449714,-159.09462,9.72e-05,2]
[356320041,1742255449723,-1662.37,9.72e-05,2]
[356320042,1742255449733,-443.31,9.72e-05,2]